bitfinex/quotes_SOLUSD_20241123
["timestamp","ask_amount","ask_price","bid_price","bid_amount"]
[1732386018435,11.91442625,255.45,255.43,20.87878453]
[1732386018719,11.91442625,255.45,255.43,4.93298453]
[1732386019097,11.91442625,255.46,255.43,4.93298453]
[1732386019301,11.91442625,255.44,255.36,15.0203]
[1732386019508,11.91442625,255.45,255.36,15.0203]
[1732386019509,11.91442363,255.38,255.36,15.0203]
[1732386019713,11.91442363,255.38,255.3,39.71315403]
[1732386019894,11.91442625,255.36,255.3,19.90071864]
[1732386020106,11.91442625,255.34,255.3,19.90071864]
[1732386020411,11.91442509,255.34,255.3,19.90071864]
[1732386020618,11.91442625,255.38,255.31,11.91442625]
[1732386020921,11.91442625,255.44,255.36,11.91442625]
[1732386021219,11.91442625,255.44,255.37,4.88041864]
[1732386021622,11.91442625,255.42,255.37,4.88041864]
[1732386021920,11.91442625,255.41,255.34,11.91442625]
[1732386022227,11.91442625,255.41,255.35,35.69131025]
[1732386022517,11.91442625,255.45,255.38,11.91442625]
[1732386022721,11.91442625,255.46,255.38,11.91442625]
[1732386023318,11.91442625,255.44,255.36,11.91442625]
[1732386023799,11.91442625,255.38,255.3,26.93472625]
[1732386024499,11.91442625,255.36,255.3,15.0203]
[1732386024920,11.91442625,255.35,255.3,15.0203]
[1732386025925,11.91442625,255.36,255.3,15.0203]
[1732386026219,11.91442625,255.36,255.3,26.93472625]
[1732386026419,11.91442625,255.38,255.3,26.93472625]
[1732386027820,11.91442625,255.36,255.3,15.0203]
[1732386033625,11.91442625,255.45,255.3,15.0203]
[1732386033832,11.91442625,255.4,255.31,11.91442625]
[1732386034131,6.2257,255.52,255.35,11.91442625]
[1732386034325,11.91442625,255.43,255.35,11.91442625]
[1732386034509,11.91442625,255.43,255.35,16.79484489]
[1732386034830,6.2257,255.52,255.35,16.79484489]
[1732386035030,11.91442625,255.43,255.36,4.88041864]
[1732386035828,11.91442625,255.47,255.39,11.91442625]
[1732386036332,2.5562,255.54,255.37,35.69131025]
[1732386036333,11.91442625,255.45,255.37,35.69131025]
[1732386036704,11.91442625,255.43,255.37,11.91442625]
[1732386036904,11.91442625,255.43,255.35,11.91442625]
[1732386042934,11.91442625,255.43,255.35,15.80742625]
[1732386043131,11.91442625,255.47,255.39,11.91442625]
[1732386043431,11.91442625,255.49,255.41,11.91442625]
[1732386043652,11.91442625,255.51,255.43,11.91442625]
[1732386047434,11.91442625,255.53,255.43,11.91442625]
[1732386047642,11.91442625,255.53,255.45,11.91442625]
[1732386048224,11.91442625,255.53,255.43,11.91442625]
[1732386048935,11.91442625,255.51,255.43,11.91442625]
[1732386049140,11.91442625,255.49,255.41,35.42479712]
[1732386049921,11.91442625,255.47,255.41,23.51037087]
[1732386050822,11.91442625,255.51,255.41,44.71292806]
[1732386051018,11.91442625,255.51,255.42,4.49965119]
[1732386051223,11.91442625,255.51,255.43,11.91442625]
[1732386054641,11.91442625,255.51,255.42,4.49965119]
[1732386055148,11.91442625,255.49,255.42,4.49965119]
[1732386056329,11.91442625,255.51,255.43,11.91442625]
[1732386057043,11.91442625,255.58,255.41,28.29885062]
[1732386057044,11.91442625,255.49,255.41,28.29885062]
[1732386057951,11.91442625,255.47,255.41,28.29885062]
[1732386058246,11.91442625,255.47,255.41,23.51037087]
[1732386058452,11.91442625,255.46,255.41,15.5752]
[1732386058629,11.91442625,255.44,255.41,15.5752]
[1732386058829,11.91442625,255.43,255.41,15.5752]
[1732386060052,11.91442625,255.43,255.36,7.70722499]
[1732386060251,11.91442625,255.43,255.35,20.73297975]
[1732386060453,10.0,255.56,255.35,20.73297975]
[1732386060454,11.91442625,255.41,255.35,20.73297975]
[1732386060625,11.91442625,255.43,255.35,25.23263094]
[1732386060825,11.91442625,255.58,255.41,11.91442625]
[1732386061054,11.91442625,255.49,255.41,16.702906]
[1732386061350,11.91442625,255.58,255.41,4.78847975]
[1732386061351,11.91442625,255.47,255.41,4.78847975]
[1732386062029,11.91442625,255.45,255.37,11.91442625]
[1732386064849,11.91442625,255.49,255.41,11.91442625]
[1732386065152,2.5562,255.6,255.44,11.91442625]
[1732386065153,11.91442625,255.51,255.44,11.91442625]
[1732386065334,11.91442625,255.53,255.45,15.9445]
[1732386065733,11.91442625,255.51,255.45,15.9445]
[1732386065929,26.2257,255.63,255.46,11.91442625]
[1732386065930,11.91442625,255.53,255.46,11.91442625]
[1732386066132,11.91442625,255.55,255.48,11.91442625]
[1732386066537,11.91442625,255.55,255.46,11.91442625]
[1732386068334,11.91442625,255.53,255.46,11.91442625]
[1732386069242,2.5562,255.66,255.48,11.91442625]
[1732386069243,11.91442625,255.55,255.48,11.91442625]
[1732386069426,11.91442625,255.58,255.48,11.91442625]
[1732386070731,11.91442625,255.54,255.46,35.69131025]
[1732386071052,11.91442625,255.56,255.48,11.91442625]
[1732386071964,11.91442625,255.54,255.46,35.69131025]
[1732386072532,11.91442625,255.54,255.46,11.91442625]
[1732386073936,11.91442625,255.56,255.46,11.91442625]
[1732386074245,11.91442625,255.56,255.48,11.91442625]
[1732386074857,11.91442625,255.58,255.5,11.91442625]
[1732386075176,11.91442625,255.6,255.52,11.91442625]
[1732386075363,11.91442625,255.6,255.53,16.1747]
[1732386075541,11.91442625,255.66,255.65,125.88557375]
[1732386075739,11.91442625,255.66,255.58,11.91442625]
[1732386075938,15.62358,255.74,255.65,11.91442625]
[1732386076157,15.62358,255.74,255.69,11.91442625]
[1732386076644,11.91442625,255.76,255.69,11.91442625]
[1732386076846,11.91442625,255.76,255.67,18.52502625]
[1732386077035,11.91442625,255.78,255.69,11.91442625]
[1732386077235,11.91442625,255.76,255.69,11.91442625]
[1732386077436,11.91442625,255.74,255.67,6.6106]
[1732386078838,11.91442625,255.74,255.67,18.52502625]
[1732386079058,11.91442625,255.84,255.63,7.61469181]
[1732386079059,11.91442625,255.7,255.63,11.91442625]
[1732386081369,11.91442625,255.66,255.61,6.6106]
[1732386081546,11.91442625,255.68,255.61,6.6106]
[1732386081746,11.91442625,255.7,255.63,11.91442625]
[1732386082060,11.91442625,255.72,255.63,11.91442625]
[1732386082444,11.91442625,255.72,255.65,11.91442625]
[1732386082650,11.91442625,255.74,255.67,11.91442625]
[1732386083870,11.91442625,255.72,255.65,11.91442625]
[1732386086247,23.776884,255.83,255.61,18.52502625]
[1732386086248,11.91442625,255.68,255.61,18.52502625]
[1732386086567,11.91442625,255.66,255.61,6.6106]
[1732386087976,11.91442625,255.66,255.59,16.1747]
[1732386088271,11.91442625,255.64,255.59,16.1747]
[1732386088477,11.91442625,255.66,255.59,16.1747]
[1732386089470,11.91442625,255.71,255.64,11.91442625]
[1732386089663,11.91442625,255.73,255.66,11.91442625]
[1732386089864,11.91442625,255.77,255.68,11.91442625]
[1732386090198,11.91442625,255.79,255.71,15.3359]
[1732386090383,11.91442625,255.77,255.71,15.3359]
[1732386090681,11.91442625,255.82,255.73,11.91442625]
[1732386091075,11.914426,255.91,255.87,137.8]
[1732386091260,11.91442625,255.93,255.84,11.91442625]
[1732386091659,11.91442625,255.91,255.84,11.91442625]
[1732386092056,11.91442625,255.91,255.82,11.91442625]
[1732386093274,11.91442625,255.89,255.8,11.91442625]
[1732386093470,11.91442625,255.87,255.78,11.91442625]
[1732386095162,11.91442625,255.87,255.8,11.91442625]
[1732386096765,11.91442625,255.87,255.78,11.91442625]
[1732386098183,11.91442625,255.87,255.8,11.91442625]
[1732386098479,11.91442625,255.97,255.8,11.91442625]
[1732386098480,11.91442625,255.89,255.8,11.91442625]
[1732386099158,11.91442625,255.87,255.8,11.91442625]
[1732386099980,11.91442625,255.92,255.84,11.91442625]
[1732386100764,11.91442625,255.9,255.82,11.91442625]
[1732386101172,11.91442625,255.9,255.8,21.76963231]
[1732386101376,11.91442625,255.9,255.8,11.91442625]
[1732386101993,11.91442625,255.88,255.8,11.91442625]
[1732386102384,11.91442625,255.86,255.78,11.91442625]
[1732386102972,11.91442625,255.9,255.82,11.91442625]
[1732386103991,11.91442625,255.92,255.84,11.91442625]
[1732386104488,11.91442625,255.92,255.82,11.91442625]
[1732386104987,11.914426,256.02,255.86,11.91442625]
[1732386105211,11.91442625,255.96,255.88,11.91442625]
[1732386106484,11.91442625,256.0,255.92,11.91442625]
[1732386106669,11.91442625,256.02,255.94,11.91442625]
[1732386106873,11.91442625,256.04,255.94,11.91442625]
[1732386107283,10.0,256.16,255.89,6.4142]
[1732386107284,10.0,256.18,255.96,11.91442625]
[1732386107594,11.91442625,256.09,256.0,11.91442625]
[1732386108578,11.91442625,256.07,255.98,35.69131025]
[1732386108780,11.91442625,256.03,255.97,16.5699]
[1732386108975,11.91442625,256.0,255.97,16.5699]
[1732386109403,11.91442625,256.02,255.97,16.5699]
[1732386110799,11.91442625,256.0,255.97,16.5699]
[1732386111008,11.91442625,255.98,255.97,16.5699]
[1732386111505,11.91442625,255.98,255.9,15.2848]
[1732386111802,11.91442625,255.93,255.9,15.2848]
[1732386114700,19.00273741,255.94,255.9,15.2848]
[1732386118696,19.00273741,255.94,255.91,20.0]
[1732386120508,19.00273741,255.96,255.91,20.0]
[1732386121510,19.00273741,255.96,255.9,15.2848]
[1732386123114,19.00273741,256.0,255.91,42.77962141]
[1732386123309,19.00273741,256.0,255.91,47.56870778]
[1732386124189,19.00273741,256.02,255.93,19.00273741]
[1732386124496,2.5562,256.16,256.07,118.79726259]
[1732386124709,2.5562,256.16,255.98,43.776884]
[1732386124710,19.00273741,256.08,255.98,43.776884]
[1732386124908,19.00273741,256.06,255.98,43.776884]
[1732386126594,19.00273741,256.04,255.98,43.776884]
[1732386127096,19.00273741,256.0,255.95,20.0]
[1732386127312,19.00273741,255.98,255.94,4.78908637]
[1732386127916,19.00273741,255.98,255.91,20.0]
[1732386128215,19.00273741,256.1,255.9,23.13611754]
[1732386128216,19.00273741,255.94,255.9,15.2848]
[1732386129095,19.00273741,255.96,255.9,15.2848]
[1732386129701,19.00273741,255.96,255.91,20.0]
[1732386130108,19.00273741,256.0,255.93,20.0]
[1732386130316,19.00273741,255.98,255.93,20.0]
[1732386130493,19.00273741,255.96,255.93,20.0]
[1732386130814,19.00273741,255.96,255.91,43.776884]
[1732386132315,19.00273741,255.98,255.91,43.776884]
[1732386132733,19.00273741,255.96,255.91,20.0]
[1732386132920,19.00273741,255.94,255.91,20.0]
[1732386133109,23.776884,256.07,255.98,118.79726259]
[1732386133412,19.00273741,255.99,255.91,20.0]
[1732386133593,19.00273741,255.92,255.91,20.0]
[1732386134618,23.776884,256.06,255.91,20.0]
[1732386134800,19.00273741,255.93,255.91,20.0]
[1732386134994,19.00273741,255.93,255.9,15.2848]
[1732386135199,19.00273741,255.91,255.9,15.2848]
[1732386135410,19.00273741,255.93,255.9,15.2848]
[1732386136705,11.87669324,255.94,255.9,15.2848]
[1732386137812,11.87669324,255.92,255.9,15.2848]
[1732386138015,11.87669324,255.92,255.87,4.78908637]
[1732386138327,11.87669324,255.88,255.86,20.0]
[1732386138520,11.87669324,255.88,255.84,20.0]
[1732386140128,11.87669324,255.92,255.85,33.63209006]
[1732386140444,11.87669324,255.94,255.85,45.5087833]
[1732386141734,11.87669324,255.94,255.86,20.0]
[1732386142136,11.87669324,255.9,255.85,9.85520606]
[1732386142436,11.87669324,255.88,255.84,20.0]
[1732386142809,11.87669324,255.88,255.83,21.7406]
[1732386143133,11.87669324,255.88,255.84,20.0]
[1732386143341,11.87669324,255.9,255.84,20.0]
[1732386144134,11.87669324,255.92,255.84,24.78908637]
[1732386144318,11.87669324,255.92,255.85,4.78908637]
[1732386144647,11.87669324,255.92,255.86,20.0]
[1732386144946,10.0,256.09,255.98,125.92330676]
[1732386145110,11.87669324,255.99,255.89,23.776884]
[1732386145310,11.87669324,255.97,255.89,23.776884]
[1732386145719,11.87669324,255.97,255.9,20.0]
[1732386145943,11.87669324,255.95,255.88,20.0]
[1732386146111,11.87669324,255.93,255.88,20.0]
[1732386146508,11.87669324,255.93,255.87,20.0]
[1732386147825,11.87669324,255.93,255.86,9.85520606]
[1732386149343,11.87669324,255.91,255.86,4.78908637]
[1732386149634,11.87669324,255.91,255.84,20.0]
[1732386150543,11.87669324,255.93,255.85,35.65357724]
[1732386150838,6.3713,256.08,256.0,125.92330676]
[1732386151148,11.87669324,256.01,255.9,23.776884]
[1732386151344,11.87669324,255.97,255.9,23.776884]
[1732386151843,11.87669324,255.97,255.91,20.0]
[1732386153244,11.87669324,255.99,255.91,20.0]
[1732386154345,11.87669324,255.97,255.91,20.0]
[1732386154838,11.87669324,255.97,255.93,20.0]
[1732386156941,6.3713,256.08,256.01,137.8]
[1732386157248,11.87669324,256.02,255.93,20.0]
[1732386157449,11.87669324,255.99,255.93,20.0]
[1732386158243,11.87669324,255.95,255.89,20.0]
[1732386158539,11.87669324,255.95,255.91,20.0]
[1732386159045,11.87669324,255.93,255.87,20.0]
[1732386159553,11.87669324,255.93,255.85,11.87669324]
[1732386160036,11.87669324,255.93,255.86,17.45935217]
[1732386160418,11.87669324,255.93,255.87,23.776884]
[1732386161234,11.87669324,255.93,255.86,17.45935217]
[1732386161443,11.87669324,255.93,255.87,20.0]
[1732386162071,11.87669324,255.93,255.86,17.45935217]
[1732386162345,11.87669324,255.93,255.87,20.0]
[1732386162869,11.87669324,255.91,255.87,20.0]
[1732386163749,33.776884,256.06,255.95,125.92330676]
[1732386163948,23.75338648,255.97,255.87,20.0]
[1732386164253,11.87669324,255.89,255.86,5.06611969]
[1732386164653,11.87669324,255.89,255.83,21.7406]
[1732386165031,11.87669324,255.87,255.83,21.7406]
[1732386165761,11.87669324,255.97,255.86,20.0]
[1732386165947,11.87669324,255.97,255.91,20.0]
[1732386166151,11.87669324,255.98,255.91,20.0]
[1732386166455,11.87669324,255.96,255.91,20.0]
[1732386166632,11.87669324,255.96,255.89,20.0]
[1732386167933,11.87669324,255.92,255.88,20.0]
[1732386168241,11.87669324,255.9,255.88,20.0]
[1732386168559,11.87669324,255.9,255.83,21.7406]
[1732386168964,11.87669324,255.88,255.83,21.7406]
[1732386169957,11.87669324,255.88,255.83,15.195]
[1732386170837,11.87669324,255.9,255.83,15.195]
[1732386172654,11.87669324,255.9,255.84,20.0]
[1732386172838,11.87669324,255.88,255.83,15.195]
[1732386173348,11.87669324,255.88,255.81,20.0]
[1732386174662,11.87669324,255.88,255.81,41.7318993]
[1732386175737,11.87669324,255.86,255.81,29.85520606]
[1732386175936,11.87669324,255.86,255.81,25.06611969]
[1732386177239,11.87669324,255.86,255.81,5.06611969]
[1732386177458,11.87669324,255.85,255.82,20.0]
[1732386179065,11.87669324,255.83,255.78,20.0]
[1732386183366,11.87669324,255.85,255.78,20.0]
[1732386183568,11.87669324,255.87,255.78,25.06611969]
[1732386183739,11.87669324,255.87,255.79,5.06611969]
[1732386183935,11.87669324,255.87,255.8,20.0]
[1732386184164,11.87669324,255.87,255.8,25.06611969]
[1732386186865,11.87669324,255.85,255.78,20.0]
[1732386187569,11.87669324,255.87,255.78,20.0]
[1732386187868,11.87669324,255.89,255.8,20.0]
[1732386188248,11.87669324,255.93,255.84,20.0]
[1732386188460,11.87669324,255.93,255.86,20.0]
[1732386188754,11.87669324,255.95,255.86,20.0]
[1732386190571,11.87669324,255.95,255.87,11.87669324]
[1732386190782,11.87669324,255.97,255.88,20.0]
[1732386191480,11.87669324,255.95,255.88,20.0]
[1732386191774,11.87669324,255.91,255.87,16.0673]
[1732386192677,11.87669324,255.89,255.86,20.0]
[1732386193660,11.87669324,255.87,255.81,16.0673]
[1732386194298,11.87669324,255.85,255.81,16.0673]
[1732386195750,11.87669324,255.89,255.82,23.776884]
[1732386195949,11.87669324,255.91,255.83,16.94281293]
[1732386196349,11.87669324,255.89,255.84,20.0]
[1732386197169,11.87669324,255.87,255.84,20.0]
[1732386197370,11.87669324,255.87,255.82,20.0]
[1732386199450,11.87669324,255.85,255.82,20.0]
[1732386200181,11.87669324,255.83,255.77,5.06611969]
[1732386200381,11.87669324,255.81,255.77,5.06611969]
[1732386200878,11.87669324,255.79,255.77,5.06611969]
[1732386201078,11.87669324,255.79,255.75,16.1987]
[1732386201279,11.87669324,255.77,255.75,16.1987]
[1732386201482,11.87669324,255.77,255.7,11.71101969]
[1732386201665,11.87669324,255.75,255.7,11.71101969]
[1732386202054,11.87669324,255.75,255.7,5.06611969]
[1732386202357,11.87669324,255.73,255.7,5.06611969]
[1732386202946,11.87669324,255.73,255.71,20.0]
[1732386203170,11.87669324,255.75,255.71,20.0]
[1732386205667,11.87669324,255.75,255.7,20.0]
[1732386205884,11.87669324,255.73,255.7,20.0]
[1732386206779,11.87669324,255.71,255.64,11.71101969]
[1732386206983,11.87669324,255.67,255.64,6.6449]
[1732386207355,11.87669324,255.67,255.63,20.53018637]
[1732386207570,11.87669324,255.67,255.63,15.7411]
[1732386207801,11.87669324,255.65,255.58,5.06611969]
[1732386207958,11.87669324,255.63,255.58,5.06611969]
[1732386208285,11.87669324,255.71,255.58,5.06611969]
[1732386208286,11.87669324,255.61,255.58,5.06611969]
[1732386208453,11.87669324,255.61,255.57,20.53018637]
[1732386208866,11.87669324,255.71,255.53,12.68257279]
[1732386208867,11.87669324,255.59,255.53,5.06611969]
[1732386209462,11.87669324,255.57,255.53,5.06611969]
[1732386209664,10.0,255.7,255.5,15.7411]
[1732386209665,11.87669324,255.55,255.5,15.7411]
[1732386209971,11.87669324,255.57,255.5,15.7411]
[1732386210864,11.87669324,255.59,255.51,31.87669324]
[1732386211066,11.87669324,255.61,255.54,20.0]
[1732386211577,11.87669324,255.61,255.56,20.0]
[1732386211953,11.87669324,255.61,255.54,20.0]
[1732386212162,11.87669324,255.59,255.56,20.0]
[1732386212655,11.87669324,255.59,255.55,23.776884]
[1732386212854,11.87669324,255.59,255.56,20.0]
[1732386213283,11.87669324,255.61,255.56,20.0]
[1732386213582,11.87669324,255.71,255.65,125.92330676]
[1732386213876,11.87669324,255.66,255.57,23.776884]
[1732386214101,11.66699324,255.62,255.58,20.0]
[1732386214309,11.66699313,255.62,255.58,20.0]
[1732386215001,11.66699313,255.62,255.56,23.776884]
[1732386215296,11.66699313,255.62,255.57,20.0]
[1732386215678,11.87669324,255.6,255.57,20.0]
[1732386215897,11.87669324,255.6,255.53,23.776884]
[1732386216109,11.87669324,255.58,255.54,20.0]
[1732386216281,11.87669324,255.58,255.51,5.06611969]
[1732386216604,11.87669324,255.58,255.52,23.776884]
[1732386216803,11.87669324,255.56,255.5,15.7411]
[1732386217299,10.0,255.68,255.5,27.61779324]
[1732386217300,11.87669324,255.58,255.5,27.61779324]
[1732386217482,11.87669324,255.58,255.5,32.40687961]
[1732386217687,11.87669324,255.58,255.51,20.0]
[1732386219687,10.0,255.68,255.51,20.0]
[1732386219886,11.87669324,255.59,255.51,20.0]
[1732386220093,10.0,255.68,255.5,27.61779324]
[1732386220094,11.87669324,255.57,255.5,27.61779324]
[1732386220278,11.87669324,255.55,255.5,15.7411]
[1732386221405,11.87669324,255.51,255.44,15.2573]
[1732386221778,11.87669324,255.47,255.39,11.31592594]
[1732386222905,11.87669324,255.49,255.4,11.87669324]
[1732386223502,11.87669324,255.49,255.42,20.0]
[1732386225505,11.87669324,255.47,255.42,20.0]
[1732386225680,11.87669324,255.47,255.41,20.0]
[1732386226310,11.87669324,255.47,255.4,20.0]
[1732386226513,11.87669324,255.45,255.39,20.0]
[1732386226810,11.87669324,255.43,255.38,15.2573]
[1732386227577,11.87669324,255.43,255.35,16.31994637]
[1732386227578,11.87669324,255.43,255.35,11.87669324]
[1732386228084,11.87669324,255.43,255.36,20.0]
[1732386228309,11.87669324,255.41,255.34,20.0]
[1732386228599,11.87669324,255.41,255.33,16.57701918]
[1732386230199,11.87669324,255.41,255.34,20.0]
[1732386234507,11.87669324,255.4,255.34,20.0]
[1732386234881,11.87669324,255.39,255.32,11.87669324]
[1732386235105,11.87669324,255.38,255.32,20.0]
[1732386235305,11.87669324,255.39,255.32,31.87669324]
[1732386235921,11.87669324,255.33,255.3,7.84721166]
[1732386236082,11.87669324,255.33,255.25,18.08769324]
[1732386236283,11.87669324,255.34,255.26,16.57701918]
[1732386236479,11.87669324,255.36,255.28,11.87669324]
[1732386236706,11.87669324,255.36,255.28,16.57701918]
[1732386237117,11.87669324,255.36,255.3,11.87669324]
[1732386237497,11.87669324,255.38,255.31,20.0]
[1732386238303,11.87669324,255.36,255.28,36.57701918]
[1732386238509,11.87669324,255.36,255.3,20.0]
[1732386240695,11.87669324,255.38,255.3,31.87669324]
[1732386243420,11.87669324,255.39,255.32,11.87669324]
[1732386243613,11.87669324,255.43,255.34,35.65357724]
[1732386243801,11.87669324,255.41,255.35,20.0]
[1732386245915,11.87669324,255.43,255.35,20.0]
[1732386246416,11.87669324,255.41,255.35,20.0]
[1732386248507,2.5562,255.5,255.35,20.0]
[1732386248717,11.87669324,255.45,255.38,35.65357724]
[1732386248896,11.87669324,255.47,255.39,20.0]
[1732386249227,11.87669324,255.47,255.38,35.65357724]
[1732386249228,11.87669324,255.47,255.38,11.87669324]
[1732386249513,11.87669324,255.47,255.39,23.776884]
[1732386249895,11.87669324,255.47,255.38,11.87669324]
[1732386250196,22.5562,255.63,255.43,23.776884]
[1732386250411,11.87669324,255.52,255.43,23.776884]
[1732386250712,11.87669324,255.52,255.42,27.28859324]
[1732386250713,11.87669324,255.52,255.45,23.776884]
[1732386251699,11.87669324,255.5,255.43,23.776884]
[1732386252104,11.87669324,255.48,255.44,20.0]
[1732386252621,11.87669324,255.48,255.43,20.0]
[1732386252837,11.87669324,255.52,255.44,35.65357724]
[1732386253225,11.87669324,255.54,255.46,23.776884]
[1732386253602,11.87669324,255.54,255.47,20.0]
[1732386254030,11.87669324,255.52,255.47,20.0]
[1732386254321,11.87669324,255.54,255.48,23.776884]
[1732386254512,11.87669324,255.56,255.48,35.65357724]
[1732386254712,11.87669324,255.58,255.5,23.776884]
[1732386255025,11.87669324,255.58,255.51,20.0]
[1732386255911,11.87669324,255.6,255.53,20.0]
[1732386256221,24.1501255,255.74,255.52,51.72937724]
[1732386256222,11.87669324,255.66,255.59,20.0]
[1732386256725,11.87669324,255.68,255.61,20.0]
[1732386257901,11.87669324,255.7,255.63,20.0]
[1732386258128,11.87669324,255.74,255.65,20.0]
[1732386258428,11.87669324,255.76,255.74,125.92330676]
[1732386258609,11.87669324,255.76,255.68,20.0]
[1732386259208,11.87669324,255.74,255.68,20.0]
[1732386259814,11.87669324,255.71,255.65,20.0]
[1732386263219,11.87669324,255.69,255.65,20.0]
[1732386265130,11.87669324,255.71,255.65,20.0]
[1732386265510,11.87669324,255.73,255.65,20.0]
[1732386266911,11.87669324,255.71,255.65,20.0]
[1732386267628,6.5163,255.82,255.64,16.0758]
[1732386267629,11.87669324,255.67,255.64,16.0758]
[1732386271714,11.87669324,255.69,255.64,16.0758]
[1732386271923,11.87669324,255.69,255.65,20.0]
[1732386272320,11.87669324,255.73,255.65,20.0]
[1732386272529,11.87669324,255.73,255.65,24.66709251]
[1732386274623,11.87669324,255.73,255.66,11.87669324]
[1732386274811,11.87669324,255.77,255.7,11.87669324]
[1732386275010,11.87669324,255.79,255.71,20.0]
[1732386275227,11.87669324,255.79,255.72,23.776884]
[1732386275429,11.87669324,255.79,255.73,20.0]
[1732386275620,11.87669324,255.81,255.75,20.0]
[1732386280848,11.87669324,255.79,255.75,20.0]
[1732386281225,11.87669324,255.81,255.75,20.0]
[1732386282723,11.87669324,255.83,255.75,20.0]
[1732386283126,11.87669324,255.85,255.75,20.0]
[1732386283550,11.87669324,255.83,255.75,20.0]
[1732386284448,11.87669324,255.81,255.75,20.0]
[1732386288222,11.87669324,255.79,255.75,20.0]
[1732386292749,7.61048931,255.79,255.75,20.0]
[1732386298164,7.61048931,255.77,255.75,20.0]
[1732386299346,7.61048931,255.77,255.65,7.61048931]
[1732386299546,7.61048931,255.73,255.66,7.63581674]
[1732386299754,7.61048931,255.73,255.65,7.61048931]
[1732386300743,7.61048931,255.73,255.66,23.776884]
[1732386301366,7.61048931,255.73,255.67,20.0]
[1732386301874,7.61048931,255.73,255.67,23.893]
[1732386302444,7.61048931,255.73,255.67,20.0]
[1732386302765,7.61048931,255.73,255.66,20.0]
[1732386305346,7.61048931,255.67,255.65,20.0]
[1732386307766,7.61048931,255.67,255.58,8.56009251]
[1732386307767,7.61048931,255.67,255.59,20.0]
[1732386307986,7.61048931,255.63,255.59,20.0]
[1732386308177,7.61048931,255.63,255.58,15.7437]
[1732386308344,7.61048931,255.6,255.58,15.7437]
[1732386308539,7.61048931,255.61,255.58,15.7437]
[1732386309762,7.61048931,255.61,255.59,20.0]
[1732386309943,7.61048931,255.59,255.52,15.7437]
[1732386310564,7.61048931,255.57,255.52,15.7437]
[1732386310748,7.61048931,255.53,255.43,3.79161078]
[1732386310947,7.61048931,255.51,255.43,19.29032613]
[1732386311246,7.61048931,255.51,255.43,7.61048931]
[1732386312070,7.61048931,255.51,255.44,20.0]
[1732386313471,7.61048931,255.51,255.44,23.776884]
[1732386313672,7.61048931,255.49,255.41,24.09089351]
[1732386313847,7.61048931,255.47,255.41,16.3148]
[1732386314745,30.44195724,255.58,255.41,23.92528931]
[1732386314966,7.61048931,255.5,255.41,23.92528931]
[1732386315263,7.61048931,255.5,255.43,7.61048931]
[1732386315677,9.1072,255.6,255.43,7.61048931]
[1732386315857,9.1072,255.6,255.45,7.61048931]
[1732386315858,7.61048931,255.54,255.45,7.61048931]
[1732386316247,10.0,255.66,255.41,16.3148]
[1732386316248,7.61048931,255.56,255.5,20.0]
[1732386316963,7.36348801,255.56,255.48,20.0]
[1732386318459,9.1072,255.66,255.51,27.61048931]
[1732386318675,11.91071808,255.57,255.51,20.0]
[1732386318963,19.1072,255.72,255.61,125.88928192]
[1732386319162,11.91071808,255.62,255.54,20.0]
[1732386319566,11.91071808,255.64,255.56,20.0]
[1732386319746,11.91071808,255.62,255.56,20.0]
[1732386320147,11.91071808,255.62,255.54,20.0]
[1732386321072,11.91071808,255.55,255.47,7.89518488]
[1732386321257,11.91071808,255.57,255.47,11.91071808]
[1732386321570,11.91071808,255.57,255.49,11.91071808]
[1732386322547,11.91071808,255.57,255.48,20.0]
[1732386322789,11.91071808,255.55,255.48,20.0]
[1732386325675,11.91071808,255.55,255.45,24.11824927]
[1732386325676,11.91071808,255.55,255.46,20.0]
[1732386327381,11.91071808,255.53,255.46,20.0]
[1732386328976,11.91071808,255.51,255.41,8.17607513]
[1732386329192,11.91071808,255.51,255.41,16.11132725]
[1732386329680,11.91071808,255.51,255.43,11.91071808]
[1732386330054,11.91071808,255.53,255.45,11.91071808]
[1732386330770,11.91071808,255.57,255.56,137.8]
[1732386330969,11.91071808,255.59,255.5,20.0]
[1732386331175,11.91071808,255.59,255.52,20.0]
[1732386332082,8.8663,255.65,255.53,11.91071808]
[1732386332083,11.91071808,255.61,255.53,11.91071808]
[1732386332260,11.91071808,255.62,255.54,20.0]
[1732386332967,11.91071808,255.6,255.51,31.91071808]